bitfinex-derivatives/quotes_SOLF0:USTF0_20241222
["timestamp","ask_amount","ask_price","bid_price","bid_amount"]
[1734840340704,2.7377,182.74,182.67,3.1]
[1734840340705,2.7378,182.73,182.68,2.7384]
[1734840341202,2.7378,182.73,182.69,2.7383]
[1734840342206,3.1,182.75,182.63,1.6629]
[1734840342601,1.6183,182.74,182.63,1.6629]
[1734840343003,1.6183,182.74,182.66,2.7387]
[1734840343004,2.7382,182.7,182.66,2.7387]
[1734840343704,2.738,182.71,182.67,2.7386]
[1734840344410,2.7378,182.73,182.68,2.7384]
[1734840344908,3.1,182.75,182.66,3.1]
[1734840345099,5.8375,182.75,182.7,2.7381]
[1734840345701,2.7371,182.77,182.73,2.7377]
[1734840345907,3.1,182.81,182.7,3.1]
[1734840346512,2.737,182.79,182.7,3.1]
[1734840347408,2.737,182.79,182.73,2.7376]
[1734840347611,2.737,182.79,182.7,3.1]
[1734840348409,2.737,182.79,182.74,2.7376]
[1734840348714,3.1,182.81,182.7,3.1]
[1734840348917,1.7045,182.83,182.7,3.1]
[1734840349110,3.1,182.82,182.73,2.7377]
[1734840349916,2.737,182.78,182.73,2.7377]
[1734840351321,2.737,182.78,182.7,3.1]
[1734840351512,2.737,182.78,182.74,2.7375]
[1734840353307,3.1,182.82,182.69,3.1]
[1734840353714,2.7376,182.75,182.71,2.738]
[1734840353911,3.1,182.78,182.67,17.85022455]
[1734840354107,3.1,182.78,182.67,1.6162]
[1734840354311,2.7383,182.7,182.65,62.86229075]
[1734840354616,2.7383,182.7,182.64,14.49732455]
[1734840355419,2.7383,182.7,182.66,2.7387]
[1734840355722,2.738,182.71,182.64,14.49732455]
[1734840356513,2.738,182.71,182.66,2.7386]
[1734840357619,2.7382,182.7,182.64,17.23622455]
[1734840357817,3.1,182.72,182.63,1.6629]
[1734840358214,3.1,182.72,182.61,16.14572455]
[1734840359320,2.7386,182.68,182.63,2.7392]
[1734840361415,2.7383,182.69,182.65,2.7389]
[1734840361814,2.7383,182.69,182.61,16.14572455]
[1734840362012,2.7383,182.69,182.64,2.7391]
[1734840364114,3.1,182.72,182.61,16.14572455]
[1734840364311,1.6623,182.75,182.61,16.14572455]
[1734840364514,3.1,182.74,182.61,16.14572455]
[1734840364818,2.7381,182.71,182.61,16.14572455]
[1734840365919,2.7379,182.73,182.64,14.49732455]
[1734840366121,2.7379,182.73,182.68,2.7384]
[1734840366417,3.1,182.74,182.66,9.06333229]
[1734840366622,3.1,182.74,182.65,5.8388]
[1734840366923,2.7384,182.69,182.65,2.7388]
[1734840367618,2.7385,182.68,182.64,2.7391]
[1734840369122,2.7383,182.69,182.65,2.7389]
[1734840369719,2.7385,182.68,182.61,9.06333229]
[1734840369924,3.1,182.7,182.61,9.06333229]
[1734840370227,3.1,182.7,182.6,3.1]
[1734840370821,3.1,182.7,182.57,63.22339075]
[1734840371121,1.5921,182.69,182.57,3.1]
[1734840371425,2.7385,182.68,182.64,2.739]
[1734840372220,2.7384,182.69,182.65,2.7389]
[1734840372619,3.1,182.7,182.59,14.50933434]
[1734840372923,2.7385,182.68,182.59,14.50933434]
[1734840374521,2.7385,182.68,182.64,2.7391]
[1734840376228,2.7384,182.69,182.65,2.7389]
[1734840376418,2.7384,182.69,182.61,3.1]
[1734840376817,2.7384,182.69,182.64,2.7389]
[1734840380229,3.1,182.71,182.58,3.1]
[1734840380425,3.1,182.71,182.56,74.63272509]
[1734840380831,3.1,182.71,182.56,14.50933434]
[1734840381024,3.1,182.71,182.6,2.7397]
[1734840382533,2.7391,182.64,182.6,2.7397]
[1734840382925,3.1,182.65,182.56,14.50933434]
[1734840383223,14.50933434,182.62,182.52,60.12339075]
[1734840383429,4.7142,182.61,182.52,60.12339075]
[1734840383625,14.50933434,182.59,182.52,60.12339075]
[1734840384025,2.7401,182.57,182.52,60.12339075]
[1734840384231,3.1,182.56,182.52,60.12339075]
[1734840384431,3.1,182.56,182.47,2.7415]
[1734840384730,17.60933434,182.56,182.44,62.86539075]
[1734840385026,17.60933434,182.56,182.45,1.7309]
[1734840385225,1.6601,182.55,182.44,62.86539075]
[1734840385423,1.6601,182.55,182.44,2.742]
[1734840385630,2.7411,182.51,182.45,2.7419]
[1734840385833,3.1,182.5,182.45,2.7419]
[1734840386223,14.50933434,182.56,182.41,63.39982341]
[1734840386224,1.6142,182.61,182.41,63.39982341]
[1734840386428,3.1,182.6,182.46,14.50933434]
[1734840386631,3.1,182.6,182.49,14.50933434]
[1734840386826,3.1,182.6,182.5,1.6191]
[1734840387028,5.8398,182.6,182.53,2.7407]
[1734840387631,5.8398,182.6,182.5,1.6191]
[1734840387832,3.1,182.6,182.5,1.6191]
[1734840388429,1.6373,182.64,182.5,1.6191]
[1734840388635,2.7396,182.61,182.5,1.6191]
[1734840388826,2.7396,182.61,182.51,3.1]
[1734840389627,3.1,182.63,182.52,14.50933434]
[1734840389628,2.7394,182.62,182.52,14.50933434]
[1734840390234,2.7398,182.6,182.52,2.7409]
[1734840390527,14.50933434,182.64,182.52,2.7409]
[1734840390528,3.1,182.59,182.52,2.7409]
[1734840390932,2.7402,182.57,182.52,2.7409]
[1734840392836,3.1,182.59,182.5,2.7411]
[1734840393038,3.1,182.59,182.47,3.4633]
[1734840393835,2.7404,182.56,182.47,3.4633]
[1734840394137,3.1,182.55,182.47,3.4633]
[1734840395138,2.7408,182.53,182.48,2.7414]
[1734840395939,3.1,182.55,182.47,1.697]
[1734840396538,3.1,182.55,182.5,2.7411]
[1734840397239,3.1,182.54,182.5,2.7411]
[1734840398241,5.8406,182.54,182.49,2.7413]
[1734840398537,3.1,182.54,182.49,2.7413]
[1734840399434,5.8406,182.54,182.49,2.7413]
[1734840400835,3.1,182.54,182.43,14.50933434]
[1734840401042,3.1,182.54,182.42,1.6452]
[1734840401241,1.618,182.53,182.37,17.90003434]
[1734840401440,2.7418,182.46,182.41,2.7424]
[1734840401637,5.8418,182.46,182.41,2.7424]
[1734840402233,3.1,182.46,182.37,19.58773434]
[1734840402737,2.742,182.45,182.41,2.7425]
[1734840403139,3.1,182.49,182.4,14.50933434]
[1734840404140,3.1,182.49,182.37,19.58773434]
[1734840404538,2.7418,182.46,182.37,19.58773434]
[1734840404738,3.1,182.45,182.37,19.58773434]
[1734840405545,1.7566,182.51,182.4,14.50933434]
[1734840405747,3.1,182.5,182.47,2.7416]
[1734840405938,3.1,182.5,182.4,14.50933434]
[1734840406341,3.1,182.5,182.46,2.7417]
[1734840407248,3.1,182.5,182.43,2.7422]
[1734840407249,2.7414,182.49,182.43,2.7422]
[1734840407443,3.1,182.5,182.4,14.50933434]
[1734840407845,2.7414,182.49,182.44,2.7421]
[1734840408646,2.7424,182.42,182.38,2.743]
[1734840408846,3.1,182.42,182.31,4.9456]
[1734840409044,3.1,182.42,182.31,65.06899075]
[1734840409346,2.7425,182.41,182.36,2.7432]
[1734840409544,3.1,182.42,182.31,65.06899075]
[1734840410548,2.7427,182.4,182.31,65.06899075]
[1734840410747,2.7427,182.4,182.31,4.9456]
[1734840411450,2.7427,182.4,182.35,2.7433]
[1734840411851,2.7427,182.4,182.31,4.9456]
[1734840412344,3.1,182.42,182.31,4.9456]
[1734840412552,2.7429,182.39,182.31,4.9456]
[1734840412757,3.1,182.38,182.31,4.9456]
[1734840414456,3.1,182.38,182.37,2.7431]
[1734840417162,3.1,182.38,182.35,2.7433]
[1734840419864,3.1,182.38,182.36,2.7433]
[1734840420559,3.1,182.38,182.34,2.7435]
[1734840421465,5.8431,182.38,182.33,2.7437]
[1734840421664,3.1,182.38,182.27,14.50933434]
[1734840422058,5.843,182.38,182.33,2.7437]
[1734840422262,3.1,182.38,182.27,14.50933434]
[1734840423166,3.1,182.38,182.34,2.7434]
[1734840423361,1.6022,182.44,182.3,17.60933434]
[1734840423362,3.1,182.4,182.3,17.60933434]
[1734840423665,3.1,182.4,182.31,1.7143]
[1734840423865,3.1,182.4,182.31,3.4274]
[1734840424065,3.1,182.4,182.31,5.1382]
[1734840424667,2.7425,182.41,182.36,2.7432]
[1734840424860,3.1,182.4,182.36,2.7432]
[1734840426368,5.8427,182.4,182.36,2.7433]
[1734840427866,3.1,182.4,182.31,5.1382]
[1734840428061,2.7429,182.39,182.35,2.7434]
[1734840428259,3.1,182.4,182.31,5.1382]
[1734840428666,3.1,182.4,182.36,2.7433]
[1734840429565,5.8428,182.4,182.36,2.7433]
[1734840430069,2.7428,182.4,182.36,2.7433]
[1734840430269,5.8428,182.4,182.36,2.7433]
[1734840433067,1.6468,182.45,182.33,17.60933434]
[1734840433266,3.1,182.47,182.33,17.60933434]
[1734840433766,1.6429,182.51,182.36,14.50933434]
[1734840434073,4.7301,182.48,182.37,3.1]
[1734840434269,3.1,182.48,182.37,3.1]
[1734840434469,3.1,182.48,182.38,1.6335]
[1734840434665,1.6429,182.51,182.47,2.7416]
[1734840434871,3.1,182.54,182.42,17.60933434]
[1734840435060,6.5051,182.55,182.42,17.60933434]
[1734840435374,1.6429,182.59,182.45,14.50933434]
[1734840435562,3.1,182.57,182.46,3.1]
[1734840437473,5.8402,182.57,182.51,2.7409]
[1734840437675,1.6429,182.59,182.5,3.1]
[1734840437868,6.5051,182.6,182.5,3.1]
[1734840438067,14.50933434,182.64,182.5,3.1]
[1734840438375,4.9909,182.66,182.51,14.50933434]
[1734840438579,3.1,182.64,182.51,14.50933434]
[1734840439275,3.1,182.64,182.54,2.7404]
[1734840439478,3.1,182.64,182.54,3.1]
[1734840439872,3.1,182.64,182.51,3.1]
[1734840439873,17.60933434,182.64,182.51,3.1]
[1734840440278,2.7395,182.62,182.55,2.7404]
[1734840440676,2.7395,182.62,182.51,3.1]
[1734840440875,3.1,182.64,182.58,2.74]
[1734840441278,3.1,182.64,182.51,17.60933434]
[1734840441477,4.9909,182.66,182.51,17.60933434]
[1734840441670,4.9909,182.66,182.54,14.50933434]
[1734840441871,3.08,182.65,182.55,4.7339]
[1734840442779,3.08,182.65,182.58,2.74]
[1734840442978,3.08,182.65,182.55,4.7339]
[1734840442979,3.08,182.65,182.52,3.08]
[1734840444582,2.7395,182.61,182.55,2.7403]
[1734840444778,3.08,182.6,182.48,19.30983434]
[1734840444981,2.7404,182.55,182.49,2.7412]
[1734840445183,3.08,182.55,182.42,77.71272509]
[1734840445382,3.3242,182.54,182.42,77.71272509]
[1734840445583,2.741,182.51,182.46,2.7418]
[1734840445780,3.08,182.52,182.46,2.7418]
[1734840446189,3.08,182.52,182.47,2.7416]
[1734840446484,3.08,182.55,182.45,14.50933434]
[1734840446680,3.08,182.55,182.46,3.08]
[1734840447382,2.7406,182.54,182.46,3.08]
[1734840448488,2.7406,182.54,182.48,2.7414]
[1734840452188,2.7406,182.54,182.49,2.7413]
[1734840453389,3.08,182.55,182.51,2.741]
[1734840453684,6.3414,182.57,182.46,3.08]
[1734840454088,6.3414,182.57,182.52,2.7408]
[1734840454592,6.3414,182.57,182.46,3.08]
[1734840454784,2.7403,182.56,182.51,2.741]
[1734840455692,6.3414,182.57,182.52,2.7409]
[1734840455889,6.3414,182.57,182.46,3.08]
[1734840455890,14.50933434,182.63,182.48,14.50933434]
[1734840456093,3.08,182.62,182.48,14.50933434]
[1734840456289,3.08,182.61,182.56,2.7403]
[1734840456495,3.08,182.61,182.49,5.0486]
[1734840457383,2.74,182.58,182.49,5.0486]
[1734840457585,2.74,182.58,182.53,2.7407]
[1734840458494,2.74,182.58,182.49,5.0486]
[1734840458495,14.50933434,182.66,182.5,3.08]
[1734840458691,5.032,182.67,182.51,14.50933434]
[1734840458995,3.08,182.66,182.51,14.50933434]
[1734840460694,2.7397,182.6,182.55,2.7404]
[1734840460891,5.8197,182.6,182.55,2.7404]
[1734840465791,2.7395,182.62,182.51,14.50933434]
[1734840466299,2.7395,182.62,182.54,2.7405]
[1734840466501,2.7396,182.61,182.51,14.50933434]
[1734840466800,2.7396,182.61,182.54,2.7406]
[1734840467001,2.7396,182.61,182.51,14.50933434]
[1734840467597,2.7394,182.62,182.51,14.50933434]
[1734840467796,5.032,182.67,182.51,14.50933434]
[1734840468099,3.08,182.66,182.54,14.50933434]
[1734840468301,5.032,182.67,182.57,14.50933434]
[1734840468601,3.08,182.69,182.57,14.50933434]
[1734840468801,3.08,182.69,182.58,1.6698]
[1734840468997,3.08,182.69,182.59,3.08]
[1734840469506,3.08,182.7,182.6,14.50933434]
[1734840470499,2.7381,182.71,182.66,2.7388]
[1734840470701,3.08,182.72,182.6,14.50933434]
[1734840470896,5.0748,182.73,182.63,14.50933434]
[1734840471101,5.0748,182.73,182.69,2.7383]
[1734840471102,3.4161,182.73,182.69,2.7383]
[1734840471603,1.6515,182.78,182.68,3.08]
[1734840471604,2.7373,182.77,182.68,3.08]
[1734840472206,2.7374,182.76,182.71,2.7379]
[1734840472407,2.7374,182.76,182.68,3.08]
[1734840473004,2.7374,182.75,182.7,2.7382]
[1734840473201,2.7374,182.75,182.61,14.50933434]
[1734840473202,3.08,182.75,182.61,14.50933434]
[1734840473504,3.08,182.75,182.64,2.739]
[1734840473704,3.08,182.75,182.61,3.08]
[1734840474097,2.7381,182.71,182.66,2.7388]
[1734840474301,2.7381,182.71,182.61,3.08]
[1734840474704,3.08,182.75,182.62,14.50933434]
[1734840475211,5.8174,182.75,182.62,14.50933434]
[1734840475707,1.6515,182.78,182.73,2.7376]
[1734840477504,4.3886,182.78,182.73,2.7376]
[1734840477705,2.7371,182.78,182.73,2.7376]
[1734840477906,3.4581,182.8,182.69,3.08]
[1734840478306,3.08,182.82,182.71,14.50933434]
[1734840478508,3.3683,182.85,182.71,14.50933434]
[1734840478708,3.08,182.84,182.71,14.50933434]
[1734840479005,3.3683,182.85,182.74,14.50933434]
[1734840479208,3.3683,182.85,182.75,3.08]
[1734840479803,56.96,182.9,182.75,3.08]
[1734840479804,14.50933434,182.92,182.77,14.50933434]
[1734840480002,3.08,182.91,182.77,14.50933434]
[1734840480200,4.9813,182.94,182.77,14.50933434]
[1734840480399,4.9813,182.94,182.8,14.50933434]
[1734840480604,7.63803849,182.98,182.83,14.50933434]
[1734840480810,10.71803849,182.98,182.86,14.50933434]
[1734840481007,13.45213849,182.98,182.91,2.735]
[1734840481209,13.45213849,182.98,182.88,3.08]
[1734840481210,7.63803849,182.98,182.88,3.08]
[1734840481413,3.08,183.02,182.89,14.50933434]
[1734840481607,2.7335,183.01,182.92,2.7348]
[1734840481808,3.08,183.02,182.86,14.50933434]
[1734840482112,3.08,183.02,182.87,3.08]
[1734840482309,2.7343,182.96,182.89,2.7352]
[1734840482912,3.08,182.97,182.89,2.7352]
[1734840483211,3.08,182.97,182.86,3.08]
[1734840483412,1.7395,182.96,182.86,3.08]
[1734840483608,2.7346,182.95,182.89,2.7353]
[1734840483809,1.7395,182.96,182.86,17.58933434]
[1734840484005,14.50933434,183.02,182.86,17.58933434]
[1734840484213,4.8195,183.01,182.86,17.58933434]
[1734840484815,2.7348,182.93,182.85,5.8158]
[1734840485114,2.7348,182.93,182.83,14.50933434]
[1734840485115,2.7348,182.93,182.84,3.08]
[1734840485613,2.7348,182.93,182.87,2.7356]
[1734840486214,3.08,182.94,182.8,19.52413434]
[1734840486409,3.2436,182.93,182.81,3.08]
[1734840486608,3.2436,182.93,182.81,4.7455]
[1734840486810,3.08,182.97,182.83,14.50933434]
[1734840487112,3.08,182.99,182.86,14.50933434]
[1734840487414,3.2436,183.0,182.94,2.7346]
[1734840487613,3.2436,183.0,182.91,3.08]
[1734840487811,3.2436,183.0,182.93,2.7346]
[1734840488014,3.2436,183.0,182.91,3.08]
[1734840489518,2.734,182.98,182.92,2.7349]
[1734840489914,3.2436,183.0,182.91,3.08]
[1734840490118,3.2436,183.0,182.88,3.08]
[1734840490626,3.2436,183.0,182.9,2.7352]
[1734840491118,2.7343,182.96,182.87,3.08]
[1734840492421,2.7343,182.96,182.9,2.7351]
[1734840492623,3.2436,183.0,182.87,3.08]
[1734840492924,3.08,182.99,182.88,1.7475]
[1734840493418,3.08,183.02,182.89,16.20003434]
[1734840493617,3.08,183.05,183.0,2.7337]
[1734840493920,5.8128,183.07,182.95,3.08]
[1734840494114,2.7328,183.06,182.99,2.7337]
[1734840494317,3.08,183.07,182.95,3.08]
[1734840494915,5.1299,183.12,182.95,17.58933434]
[1734840494916,19.63923434,183.12,182.95,17.58933434]
[1734840495119,3.08,183.11,182.95,17.58933434]
[1734840495322,3.08,183.11,182.96,1.6177]
[1734840496221,2.7327,183.07,182.96,1.6177]
[1734840496723,3.08,183.1,182.96,1.6177]
[1734840497317,2.7331,183.05,182.98,2.734]
[1734840497522,3.08,183.06,182.98,2.734]
[1734840497822,3.08,183.06,182.95,3.08]
[1734840498720,3.08,183.06,182.98,2.734]
[1734840498721,2.7332,183.04,182.98,2.734]
[1734840499019,3.08,183.06,182.95,3.08]
[1734840500427,2.7335,183.02,182.97,2.7341]
[1734840500924,3.06,183.02,182.91,3.06]
[1734840501223,5.0171,183.01,182.91,3.06]
[1734840501825,5.0171,183.01,182.95,2.7344]
[1734840502025,1.6452,183.01,182.91,3.06]
[1734840502221,3.06,183.02,182.92,23.48327834]
[1734840502423,3.06,183.05,182.92,23.48327834]
[1734840502720,2.7333,183.03,182.92,23.48327834]
[1734840503128,2.7333,183.03,182.97,2.7341]
[1734840503324,2.7334,183.02,182.97,2.7341]
[1734840503621,3.06,183.05,182.97,2.7341]
[1734840503829,3.06,183.05,182.92,23.48327834]
[1734840503830,2.7331,183.04,182.98,2.7339]
[1734840504426,3.06,183.05,182.9,1.7415]
[1734840504628,5.0711,183.04,182.9,4.8015]
[1734840505024,2.7334,183.02,182.97,2.7341]
[1734840505730,5.0711,183.04,182.9,4.8015]
[1734840505930,2.7336,183.01,182.96,2.7343]
[1734840507329,2.7334,183.02,182.97,2.7341]
[1734840507827,2.7336,183.01,182.94,3.06]
[1734840508130,2.7336,183.01,182.96,2.7343]
[1734840510726,10.8643,183.04,182.98,2.7339]
[1734840510935,10.8643,183.04,182.94,3.06]
[1734840511124,8.1311,183.04,182.94,3.06]
[1734840512531,2.7336,183.01,182.97,2.7341]
[1734840514031,2.7336,183.01,182.94,3.06]
[1734840514032,23.48327834,183.09,182.94,3.06]
[1734840514225,23.48327834,183.11,182.95,23.48327834]
[1734840514425,3.06,183.1,182.95,23.48327834]
[1734840514629,2.7328,183.06,183.02,2.7334]
[1734840516428,3.06,183.1,182.99,3.06]
[1734840516727,3.06,183.1,182.96,3.06]
[1734840516728,14.45122449,183.09,182.96,3.06]
[1734840517126,14.45122449,183.09,182.99,2.7338]
[1734840517322,14.45122449,183.09,182.96,3.06]
[1734840517526,14.45122449,183.09,182.98,2.734]
[1734840518335,2.7334,183.03,182.98,2.734]
[1734840518838,3.06,183.05,182.96,3.06]
[1734840519032,3.06,183.07,182.96,3.06]
[1734840519735,2.7326,183.08,183.0,2.7337]
[1734840519930,3.06,183.07,182.96,3.06]
[1734840520135,5.1064,183.06,182.96,3.06]
[1734840520440,2.7334,183.03,182.98,2.7339]
[1734840520734,5.1064,183.06,182.96,3.06]
[1734840520929,2.7337,183.01,182.96,5.7943]
[1734840524333,2.734,182.98,182.94,2.7345]
[1734840524837,3.06,183.03,182.91,3.06]
[1734840525038,2.7342,182.97,182.93,2.7347]
[1734840525726,2.734,182.99,182.95,2.7344]
[1734840526435,2.734,182.99,182.91,14.45122449]
[1734840526436,2.7341,182.98,182.94,2.7346]
[1734840526832,19.55762449,183.06,182.91,17.51122449]
[1734840527032,3.06,183.05,182.91,17.51122449]
[1734840527232,5.1064,183.06,182.95,14.45122449]
[1734840527437,2.7332,183.04,182.99,2.7338]
[1734840527730,5.1064,183.06,182.96,3.06]
[1734840527935,3.06,183.08,182.96,3.06]
[1734840528135,2.7329,183.06,183.01,2.7334]
[1734840531934,2.7329,183.06,183.02,2.7334]
[1734840535636,5.0483,183.11,183.01,14.45122449]
[1734840535637,8.1083,183.11,183.01,14.45122449]
[1734840535833,3.406,183.11,183.01,14.45122449]
[1734840536239,6.1381,183.11,183.01,14.45122449]
[1734840536633,1.7474,183.11,183.01,14.45122449]
[1734840537043,2.7319,183.12,183.08,2.7325]
[1734840537738,1.6867,183.15,183.08,2.7325]
[1734840537942,1.6554,183.16,183.05,3.06]
[1734840538244,1.6554,183.16,183.05,6.4539]
[1734840538539,4.3867,183.16,183.11,2.7319]
[1734840538739,1.6413,183.17,183.07,14.45122449]
[1734840539242,1.6413,183.17,183.13,2.7317]
[1734840540036,1.6413,183.17,183.12,2.7319]
[1734840540240,1.6413,183.17,183.1,3.06]
[1734840540436,2.7313,183.16,183.1,3.06]
[1734840541140,3.06,183.16,183.07,17.51122449]
[1734840541346,3.06,183.16,183.08,2.7325]
[1734840541544,3.06,183.16,183.07,3.06]
[1734840541749,3.06,183.16,183.05,3.3939]
[1734840542045,3.06,183.16,183.08,2.7325]
[1734840543451,2.7318,183.13,183.08,2.7325]
[1734840546839,2.7318,183.13,183.09,2.7323]
[1734840548257,1.6413,183.17,183.07,14.45122449]
[1734840548751,1.6413,183.17,183.07,16.16522449]
[1734840549643,2.7311,183.18,183.13,2.7317]
[1734840549849,6.3519,183.21,183.11,3.06]
[1734840550047,6.3519,183.21,183.14,2.7315]
[1734840550249,6.3519,183.21,183.11,3.06]
[1734840550451,6.3519,183.21,183.07,16.16522449]
[1734840550750,14.45122449,183.18,183.02,3.06]
[1734840550952,3.06,183.17,183.02,3.06]
[1734840551259,3.06,183.17,183.04,14.45122449]
[1734840551551,3.06,183.17,183.01,76.03400199]
[1734840551752,14.45122449,183.12,183.0,2.7336]
[1734840551953,8.1387,183.11,183.0,2.7336]
[1734840553352,2.7329,183.06,183.0,2.7336]
[1734840553850,3.06,183.07,182.97,14.45122449]
[1734840554056,5.0787,183.11,182.97,14.45122449]
[1734840554057,8.1387,183.11,182.97,14.45122449]
[1734840554250,1.6942,183.11,183.01,14.45122449]
[1734840554555,3.06,183.15,183.04,14.45122449]
[1734840554754,2.7316,183.14,183.09,2.7323]
[1734840561064,3.06,183.15,183.07,2.7325]
[1734840561254,3.06,183.15,183.01,14.45122449]
[1734840561455,17.51122449,183.15,182.98,3.06]
[1734840561662,17.51122449,183.15,183.03,2.7332]
[1734840561663,2.7325,183.08,183.03,2.7332]
[1734840562955,3.06,183.09,183.03,2.7332]
[1734840563156,3.06,183.09,183.01,2.7335]
[1734840563354,1.6607,183.08,183.01,2.7335]
[1734840564061,1.6607,183.08,182.99,3.06]
[1734840564557,2.7327,183.07,182.99,3.06]
[1734840564760,2.7327,183.07,183.02,2.7333]
[1734840565467,3.06,183.06,182.97,17.51122449]
[1734840565764,3.06,183.06,182.99,2.7338]
[1734840566463,2.7332,183.04,182.99,2.7338]
[1734840566661,2.7332,183.04,182.97,3.06]
[1734840566662,3.06,183.06,182.94,19.46072449]
[1734840566859,3.06,183.06,182.94,14.45122449]
[1734840567054,2.7337,183.01,182.94,14.45122449]
[1734840567661,2.7337,183.01,182.97,2.7341]
[1734840568658,2.7337,183.0,182.95,2.7344]
[1734840568859,3.06,183.02,182.88,14.45122449]
[1734840569061,4.9067,182.99,182.88,14.45122449]
[1734840569266,3.06,182.98,182.88,14.45122449]
[1734840569664,30.14990329,183.12,182.95,14.45122449]
[1734840569868,3.2512,183.1,183.0,14.45122449]
[1734840570169,30.14990329,183.08,183.04,2.733]
[1734840570365,30.14990329,183.08,183.0,18.23122449]
[1734840570757,30.14990329,183.08,183.03,14.45122449]
[1734840570961,30.14990329,183.08,183.01,3.4104]
[1734840571257,30.14990329,183.08,183.02,14.45122449]
[1734840572066,3.78,183.16,183.03,23.46643957]
[1734840572471,2.7319,183.13,183.07,2.7327]
[1734840572661,3.78,183.16,183.05,3.78]
[1734840574366,2.7317,183.14,183.08,2.7325]
[1734840575268,3.78,183.16,183.08,2.7325]
[1734840575467,2.7318,183.13,183.08,2.7325]
[1734840576560,2.7316,183.14,183.08,2.7325]
[1734840581075,2.7316,183.14,183.09,2.7323]
[1734840581372,11.4911,183.17,183.04,3.78]
[1734840581769,7.7111,183.17,183.04,3.78]
[1734840582073,7.7111,183.17,183.11,2.732]
[1734840582568,4.9798,183.17,183.06,3.78]
[1734840582775,4.9798,183.17,183.03,23.46643957]
[1734840582966,4.9798,183.17,183.04,3.78]
[1734840583474,2.7316,183.15,183.04,3.78]
[1734840584574,2.7316,183.15,183.09,2.7322]
[1734840585173,2.7316,183.15,183.06,3.78]
[1734840585475,2.7316,183.15,183.1,2.7322]
[1734840586773,4.9798,183.17,183.03,23.46643957]
[1734840586973,2.7319,183.13,183.07,2.7326]
[1734840587274,2.7319,183.13,183.04,3.78]
[1734840587573,2.7319,183.13,183.08,2.7324]
[1734840588567,2.7319,183.13,183.09,2.7323]
[1734840589473,2.7319,183.13,182.98,1.6763]
[1734840589474,2.7321,183.11,183.06,2.7327]
[1734840590274,2.7321,183.11,183.04,2.7331]
[1734840590480,2.7321,183.11,183.01,3.78]
[1734840590671,2.7319,183.12,183.01,3.78]
[1734840590868,2.7319,183.12,183.07,2.7325]
[1734840591472,2.7321,183.11,183.07,2.7325]
[1734840595282,2.7323,183.1,183.05,2.7328]
[1734840596282,2.732,183.12,183.07,2.7325]
[1734840596479,2.732,183.12,183.02,3.54]
[1734840597476,2.732,183.12,183.07,2.7325]
[1734840600879,18.22340706,183.15,182.98,1.6763]
[1734840601083,18.22340706,183.15,183.01,3.54]
[1734840601278,2.7319,183.12,183.08,2.7325]
[1734840601481,8.5198,183.17,183.01,3.54]
[1734840601883,2.7319,183.13,183.08,2.7324]
[1734840602085,2.7319,183.13,183.01,3.54]
[1734840602579,2.7319,183.13,183.08,2.7324]
[1734840603178,2.7319,183.13,183.01,3.54]